Cogmind - Beta 11 --- EXPLORER MODE // 2022.03.20 @ 18:43:12 Player: Analote Result: Self-destructed Performance ------------- Evolutions (2) 1000 Regions Visited (4) 800 Robots Destroyed (40) 200 Value Destroyed (1038) 1038 Prototype IDs (3) 60 Alien Tech Used (0) 0 Bonus (0) 0 TOTAL SCORE: 3098 Bonus ------- None Cogmind --------- Core Integrity 439/550 Matter 300/300 Energy 0/100 System Corruption 2% Temperature Cool (0) Movement Walking (120) Location -8/Materials Parts ------- > --- POWER (2) -------- (None) > --- PROPULSION (4) --- Improved Aluminum Leg > --- UTILITY (4) ------ Improved Heat Sink Improved Signal Interpreter Targeting Computer Trap Extractor (0/4) > --- WEAPON (2) ------- Beam Rifle > --- INVENTORY (5) ---- (None) Peak State ------------ > --- POWER ------------ Light Nuclear Core Light Nuclear Core > --- PROPULSION ------- Aluminum Leg Aluminum Leg Aluminum Leg VSS Leg > --- UTILITY ---------- Improved Heat Sink Targeting Computer Light Armor Plating Trap Extractor > --- WEAPON ----------- Improved EM Shotgun Improved EM Shotgun > --- INVENTORY -------- Aluminum Leg Flight Unit Beam Rifle [Rating: 25] Favorites ----------- Power Light Nuclear Core Engine Light Ion Engine Power Core Light Nuclear Core Propulsion Aluminum Leg Leg Aluminum Leg Flight Unit Flight Unit Utility Targeting Computer Device Improved Heat Sink Processor Targeting Computer Protection Light Armor Plating Weapon Improved EM Shotgun Energy Gun Improved EM Shotgun Ballistic Gun Light Assault Rifle Launcher Advanced EMP Blaster Build | -11 -10 -9 -9 -8 ------- Run | Scr Mat Mat Sto Mat Slots Evolved 5 | . 1 2 . 2 Power 1 | . . 1 . . Propulsion 2 | . 1 1 . . Utility 2 | . . . . 2 Weapon . | . . . . . Parts Attached 35 | 6 5 1 8 15 Power 6 | 1 2 1 1 1 Engine 3 | 1 1 1 . . Core 3 | . 1 . 1 1 Reactor . | . . . . . Propulsion 12 | 2 1 . 4 5 Treads . | . . . . . Leg 9 | 2 1 . 4 2 Wheel . | . . . . . Hover . | . . . . . Flight 3 | . . . . 3 Utility 6 | 2 1 . . 3 Device 3 | 1 1 . . 1 Storage . | . . . . . Processor 2 | 1 . . . 1 Hackware . | . . . . . Protection 1 | . . . . 1 Artifact . | . . . . . Weapon 11 | 1 1 . 3 6 Energy Gun 9 | . 1 . 3 5 Energy Cannon . | . . . . . Ballistic Gun 1 | 1 . . . . Ballistic Cannon . | . . . . . Launcher 1 | . . . . 1 Special Weapon . | . . . . . Impact Weapon . | . . . . . Slashing Weapon . | . . . . . Piercing Weapon . | . . . . . Special Melee Weapon . | . . . . . Unidentified Prototypes 3 | . . . 1 2 Corrupted Parts 1 | . . . . 1 System Corruption 2 | . . . . 2 Parts Lost 11 | . . . 4 7 Power 3 | . . . 2 1 Propulsion 3 | . . . 1 2 Utility 1 | . . . . 1 Weapon 4 | . . . 1 3 Highest Loss Streak 4 | . . . 3 4 To Critical Strikes . | . . . . . Average Slot Usage (%) 86 | . 87 90 87 80 Engine 3 | . 8 10 2 . Core 11 | . 3 10 16 11 Leg 25 | . 33 30 30 10 Flight 3 | . . . . 12 Device 12 | . 12 10 10 16 Processor 10 | . 12 10 10 10 Protection 1 | . . . . 4 Energy Gun 12 | . 3 10 17 13 Ballistic Gun 4 | . 12 10 2 . Naked Turns . | . . . . . Heaviest Build 22 | 7 8 11 17 22 Greatest Support 42 | 20 30 30 40 42 Greatest Overweight (x) 2 | 1 . . . 2 Average Overweight (x) . | . . . . . Largest Inventory Capacity 5 | 5 5 5 5 5 Average Capacity 5 | 5 5 5 5 5 Most Carried 5 | 2 4 3 5 4 Average Carried 2 | . 2 3 4 1 Final Capacity 5 | 5 5 5 5 5 Final Carried 4 | 1 4 3 4 . Class Distribution -------------------- 61% | Hacker-Mutant 38% | Scavenger-Mutant Dominant Class ---------------- Hacker-Mutant | -10/Materials Hacker-Mutant | -9/Materials Scavenger-Mutant | -9/Storage Hacker-Mutant | -8/Materials Resources | -11 -10 -9 -9 -8 ----------- Run | Scr Mat Mat Sto Mat Matter Collected 642 | 224 157 . 77 184 Remotely . | . . . . . Salvage Created 1766 | . 393 . 955 418 Parts 102 | . 22 . 62 18 Haulers Intercepted 9 | . 2 . 6 1 Recyclers Shooed . | . . . . . Parts Field Recycled . | . . . . . Retrieved Matter . | . . . . . Parts Self-Destructed . | . . . . . Prevented . | . . . . . Kills | -11 -10 -9 -9 -8 ------- Run | Scr Mat Mat Sto Mat Combat Hostiles Destroyed 25 | . 7 . 11 7 Guns 22 | . 7 . 11 4 AOE 1 | . . . . 1 Classes Destroyed 8 | . 4 . 3 1 Builder 2 | . . . 1 1 Hauler 9 | . 2 . 6 1 Watcher 4 | . 2 . 2 . Swarmer 4 | . 2 . . 2 Grunt 10 | . 5 . 5 . Duelist 1 | . . . 1 . Sentry 8 | . . . 5 3 Hunter 2 | . . . . 2 Best Kill Streak 6 | . 3 . 6 3 Combat Bots Only 4 | . 2 . 4 3 Max Kills in Single Turn 2 | . 1 . 2 1 Gunslinging . | . . . . . Exploded 1 | . . . . 1 Melee . | . . . . . Uniques/NPCs Destroyed . | . . . . . Combat | -11 -10 -9 -9 -8 -------- Run | Scr Mat Mat Sto Mat Damage Taken 1232 | . 252 . 442 538 Core 219 | . 54 . 54 111 Absorbed by Shields . | . . . . . Core Remaining (%) 88 | 100 78 . 86 . Volleys Fired 173 | . 72 1 64 36 Largest 2 | . 2 2 2 2 Hottest 101 | . 60 60 101 101 Shots Fired 256 | . 78 2 117 59 Gun 256 | . 78 2 117 59 Cannon . | . . . . . Launcher . | . . . . . Special . | . . . . . Kinetic 93 | . 72 1 20 . Thermal 104 | . 6 1 66 31 Explosive . | . . . . . Electromagnetic 59 | . . . 31 28 Robot Hit Streak 29 | . 15 . 29 18 Robot Miss Streak 3 | . 3 2 1 3 Penetration Max . | . . . . . Secondary Targets . | . . . . . Shots Hit Robots 216 | . 62 . 101 53 Core Hits 86 | . 27 . 42 17 Critical Kills . | . . . . . Critical Parts Destroyed 1 | . 1 . . . Critical Strikes 7 | . 1 . 2 4 Burn 6 | . . . 2 4 Destroy 1 | . 1 . . . Melee Attacks . | . . . . . Impact . | . . . . . Slashing . | . . . . . Piercing . | . . . . . Sneak Attacks . | . . . . . Combat Hostiles . | . . . . . Follow-up Attacks . | . . . . . Damage Inflicted 2819 | . 533 . 1299 987 Guns 2693 | . 533 . 1299 861 Cannons . | . . . . . Explosions 123 | . . . . 123 Melee . | . . . . . Ramming 3 | . . . . 3 Kinetic 650 | . 501 . 149 . Thermal 1223 | . 32 . 677 514 Explosive . | . . . . . Electromagnetic 943 | . . . 473 470 Impact . | . . . . . Slashing . | . . . . . Piercing . | . . . . . Highest Corruption 2 | . . . . 2 Average Corruption 2 | . . . . 2 Corruption Purged . | . . . . . Corruption Blocked . | . . . . . Effects 3 | . . . . 3 Matter Fused 2 | . . . . 2 Misfires 1 | . . . . 1 Overload Shots . | . . . . . Overflow Damage 9 | . . . . 9 Projectiles . | . . . . . Explosions 9 | . . . . 9 Melee . | . . . . . Knockbacks . | . . . . . Impact . | . . . . . Kinetic . | . . . . . Secondary . | . . . . . Self-Inflicted Damage 40 | . . . . 40 Shots 2 | . . . . 2 Rammed . | . . . . . Targets Rammed 1 | . . . . 1 Kicked 1 | . . . . 1 Crushed . | . . . . . Highest Temperature 322 | . 19 . 60 322 Average Temperature 49 | . 9 . 14 97 Received Heat Transfer 726 | . 258 . 279 189 Siege Activations . | . . . . . Robots Corrupted 2 | . . . 1 1 Combat Hostiles 1 | . . . . 1 Parts Fried 9 | . . . 7 2 Impact Corruptions . | . . . . . Robots Melted 1 | . . . . 1 Combat Hostiles 1 | . . . . 1 Parts Melted 7 | . . . 2 5 Heat Transferred 3173 | . 75 . 1753 1345 Parts Sabotaged . | . . . . . Parts Stolen . | . . . . . Parts Stripped . | . . . . . Power Chain Reactions 3 | . . . . 3 Missiles Intercepted . | . . . . . Alert | -11 -10 -9 -9 -8 ------- Run | Scr Mat Mat Sto Mat Peak Influence 291 | . 228 76 252 291 Initial 68 | . . 68 22 49 Average 121 | . 107 70 118 171 Maximum Alert Level 1 | . 1 . 1 1 Low Security (%) 86 | 100 90 100 92 65 Level 1 13 | . 9 . 7 34 Level 2 . | . . . . . Level 3 . | . . . . . Level 4 . | . . . . . Level 5 . | . . . . . High Security . | . . . . . Max Security . | . . . . . Squads Dispatched 4 | . . . 1 3 Investigation . | . . . . . Extermination . | . . . . . Reinforcement 2 | . . . 1 1 Assault . | . . . . . Garrison 2 | . . . . 2 Intercept . | . . . . . Searches Triggered . | . . . . . Construction Impeded . | . . . . . Haulers Reinforced . | . . . . . Active Scanning Responses . | . . . . . Cargo Convoy Interrupts . | . . . . . Stealth | -11 -10 -9 -9 -8 --------- Run | Scr Mat Mat Sto Mat Distress Signals 4 | . . . 3 1 Communications Jammed . | . . . . . Distress Signals . | . . . . . Times Spotted 45 | . 15 . 15 15 Peak Tracking Total 6 | . 4 1 5 6 Tactical Retreats . | . . . . . Traps | -11 -10 -9 -9 -8 ------- Run | Scr Mat Mat Sto Mat Traps Triggered 2 | . . . 2 . Indirectly . | . . . . . Trap Hack Attempts . | . . . . . Triggered . | . . . . . Disarmed . | . . . . . Reprogrammed . | . . . . . Reused . | . . . . . Traps Extracted . | . . . . . Installed . | . . . . . Triggered . | . . . . . Machines | -11 -10 -9 -9 -8 ---------- Run | Scr Mat Mat Sto Mat Machines Disabled 1 | . . . . 1 Max in Single Turn 1 | . . . . 1 Machines Sabotaged . | . . . . . Garrisons Compromised . | . . . . . Overloaded Fab Kills . | . . . . . Hacking | -11 -10 -9 -9 -8 --------- Run | Scr Mat Mat Sto Mat Machines Accessed 6 | . . 1 4 1 Terminals 3 | . . . 3 . Fabricators . | . . . . . Repair Stations . | . . . . . Recycling Units 1 | . . . 1 . Scanalyzers 2 | . . 1 . 1 Garrison Access . | . . . . . Total Hacks 8 | . . 2 4 2 Successful 8 | . . 2 4 2 Failed . | . . . . . Catastrophic . | . . . . . Database Lockouts . | . . . . . Manual . | . . . . . Terminals 3 | . . . 3 . Fabricators . | . . . . . Repair Stations . | . . . . . Recycling Units 1 | . . . 1 . Scanalyzers 4 | . . 2 . 2 Garrison Access . | . . . . . Terminal Hacks 3 | . . . 3 . Open Door 3 | . . . 3 . Fabricator Hacks . | . . . . . Repair Station Hacks . | . . . . . Recycling Unit Hacks 1 | . . . 1 . Process 1 | . . . 1 . Scanalyzer 4 | . . 2 . 2 Insert Component 2 | . . 1 . 1 Analyze 2 | . . 1 . 1 Garrison Access Hacks . | . . . . . Unauthorized Hacks . | . . . . . Terminals . | . . . . . Fabricators . | . . . . . Repair Stations . | . . . . . Recycling Units . | . . . . . Scanalyzers . | . . . . . Garrison Access . | . . . . . Data Cores Recovered . | . . . . . Used . | . . . . . Hacking Detections 3 | . . . 2 1 Full Trace Events . | . . . . . Feedback Events . | . . . . . Feedback Blocked . | . . . . . Robot Schematics Acquired . | . . . . . Robots Built . | . . . . . Authchips . | . . . . . Time . | . . . . . Total Robot Build Rating . | . . . . . Part Schematics Acquired 2 | . . 1 . 1 Parts Built . | . . . . . Authchips . | . . . . . Time . | . . . . . Total Part Build Rating . | . . . . . Parts Repaired . | . . . . . Time . | . . . . . Parts Recycled . | . . . . . Recycled Matter 5 | . . . 5 . Retrieved Matter . | . . . . . Retrieved Components . | . . . . . Parts Scanalyzed 2 | . . 1 . 1 Part Schematics Acquired 2 | . . 1 . 1 Parts Damaged . | . . . . . Bothacking | -11 -10 -9 -9 -8 ------------ Run | Scr Mat Mat Sto Mat Used RIF Installer . | . . . . . Robots Hacked . | . . . . . Non-combat . | . . . . . Combat . | . . . . . Robot Hacks Applied . | . . . . . Relay Couplers Released . | . . . . . Fabnet Peak Effective % . | . . . . . Robots Rewired . | . . . . . Allies Hacked . | . . . . . Hacks Repelled . | . . . . . Allies | -11 -10 -9 -9 -8 -------- Run | Scr Mat Mat Sto Mat Total Allies . | . . . . . Largest Group . | . . . . . Highest-Rated Group . | . . . . . Highest-Rated Ally . | . . . . . Total Orders . | . . . . . Ally Attacks . | . . . . . Total Damage . | . . . . . Kills . | . . . . . Allies Corrupted . | . . . . . Allies Melted . | . . . . . Intel | -11 -10 -9 -9 -8 ------- Run | Scr Mat Mat Sto Mat Robot Analysis Total . | . . . . . Derelict Logs Recovered . | . . . . . Drone Launches . | . . . . . Drone Recoveries . | . . . . . Exploration | -11 -10 -9 -9 -8 ------------- Run | Scr Mat Mat Sto Mat Turns Passed 1539 | 60 386 55 675 363 Spaces Moved 858 | 36 198 43 396 185 Core 31 | 11 . . . 20 Treads . | . . . . . Legs 740 | 25 198 43 396 78 Wheels . | . . . . . Hover . | . . . . . Flight 87 | . . . . 87 Fastest Speed 50 | 50 120 120 120 100 Average Speed 118 | 105 120 120 120 114 Slowest Speed 200 | 120 120 120 120 200 Overloaded Moves . | . . . . . Propulsion Burnouts . | . . . . . Robots Hopped . | . . . . . Cave-ins Triggered . | . . . . . Exploration Rate (%) 28 | 4 52 6 61 17 Regions Visited 4 Branch Regions 1 Pre-discovered Areas . | . . . . . Known Exits Taken 4 | 1 1 1 1 . Unknown Exits Taken . | . . . . . Scrap Searched . | . . . . . Spaces Dug . | . . . . . Terrain Destroyed 18 | . . . . 18 Melee . | . . . . . Projectile . | . . . . . AOE 18 | . . . . 18 Terrain Rammed . | . . . . . Walls Destroyed . | . . . . . Machines Disabled . | . . . . . Actions | -11 -10 -9 -9 -8 --------- Run | Scr Mat Mat Sto Mat Total 1150 | 58 282 44 484 282 Wait 36 | 8 1 . 4 23 Move 854 | 35 197 42 395 185 Hop . | . . . . . Pick Up 34 | 8 6 . 9 11 Fast Attach . | . . . . . Attach 25 | 6 2 1 4 12 Detach . | . . . . . Swap 10 | . 3 . 4 3 Drop 17 | 1 1 . 4 11 Fire 173 | . 72 1 64 36 Melee . | . . . . . Ram . | . . . . . Kick 1 | . . . . 1 Crush . | . . . . . Escape Stasis . | . . . . . Rewire . | . . . . . Trap . | . . . . . Miscellaneous . | . . . . . Route ------- -11/Scrapyard -10/Materials (discovered 2 exits: *Mat / *Min) -9/Materials -9/Storage -8/Materials History --------- Turn | Location | Event 5 | -11/Scrapyard | Identified exit to Materials 5 | -11/Scrapyard | Discovered exit to Materials (range 15) 61 | -11/Scrapyard | Entered Materials 61 | -10/Materials | Evolved 1 slot: Propulsion x1 195 | -10/Materials | Identified exit to Mines 195 | -10/Materials | Discovered exit to Mines (range 12) 301 | -10/Materials | Build established: Hacker-Mutant 434 | -10/Materials | Identified exit to Materials 434 | -10/Materials | Discovered exit to Materials (range 8) 447 | -10/Materials | Entered another Materials area 447 | -9/Materials | Evolved 2 slots: Power x1, Propulsion x1 448 | -9/Materials | Identified exit to Storage 448 | -9/Materials | Discovered exit to Storage (range 15) 502 | -9/Materials | Entered Storage 680 | -9/Storage | Lost 3 parts (1p1n1w) 972 | -9/Storage | Build established: Scavenger-Mutant 1105 | -9/Storage | Identified exit to Materials 1105 | -9/Storage | Discovered exit to Materials (range 16) 1177 | -9/Storage | Entered Materials 1177 | -8/Materials | Evolved 2 slots: Utility x2 1408 | -8/Materials | Garrison activated, responded to threat 1495 | -8/Materials | Lost 4 parts (2n2w) 1540 | -8/Materials | Self-destructed Last Messages --------------- 01470_ U-05 Engineer builds a Wall. 01470_ Y-45 Defender suffers critical hit (Burn). 01470_ Y-45 Defender critical meltdown. 01470_ Lgt. Treads melted. 01470_ Imp. Ion Engine melted. 01470_ Heat Sink melted. 01471_ Acquired 19 matter. 01474_ Dropped Flight Unit. 01475_ Dropped Lgt. Nuclear Core. 01487_ Acquired Corrupted Carbon-fiber Leg. 01497_ Acquired Imp. Aluminum Leg. 01499_ Dropped Corrupted Carbon-fiber Leg. 01501_ Acquired 10 matter. 01501_ R-06 Scavenger collects Lgt. Nuclear Core. 01502_ System corrupted: Matter fused (-10). 01502_ Acquired 10 matter. 01504_ R-06 Scavenger collects Flight Unit. 01518_ Kicked U-05 Engineer. 01522_ W-25 Informer distress signal alerts nearby ally. 01539_ Critical hit (Burn: +37). Map ----- +----------------------------------------------------+ | ??????# #????# == ???????????????? | | ??????# #????# ???????????????? | | ??????# #????# ##############????????????????? | | ??????# #????###+###?????????????????????????????? | | ??????# #????????????????????????????????????????? | | ??????# #????????????????????????????????????????? | | ??????# #????????????????????????????????????????? | | ??????# #????????????????????????????????????????? | | ??????# #????????????????????????????????????????? | | ??????# #????????????????????????????????????????? | | ??????# #????????????????????????????????????????? | | ?# #### #????????????????????????????????????????? | | ?# =!###########??????????????????????????????? | | ####+##[# #??????????????????????????????? | | !! #[+ #??????+???????????????????????? | | !! "" "[" #?????? ???????????????????????? | | ! T" "%" #?????? ???????????????????????? | | "" #[###########?????# #??????????????????????? | | [ #[############????# #??????????????????????? | | #######[## T #????# #??????????????????????? | | ??????#!## [ #????# #??????????????????????? | | ?????## ## % #????# #??????????????????????? | | ?????# # """" #????# #??????????????????????? | | ?????+ + """" ###### #???######?????????????? | | ?????# # "" " !######Y#### ! #?????????????? | | ?????# # = %+%%%=!@s + #?????????????? | | ?????# # = !######s#### """ / ??????? | | ?????# ##############?# #??? """ #### #??????? | | ?????# #??????????????# #????""" #?????????????? | | ?????# #??????????????# #???? #?????????????? | | ?????# #??????????????# #????? #?????????????? | | ?????# #?????????????? ?????/###?????????????? | | ?????+ #?????????????? ?????? ???????????????? | | ?????# ?????????????? ?????? ??????????????? | | ?????# #?????????????? ??????? ??????????????? | | ?????# #?????????????? ??????? ?????????????? | | ?????# ???????????????###???????? ?????????????? | | ?????# ????????????????????????????????????????? | | ?????? ????????????????????????????????????????? | | ?????????????????????????????????????????????????? | | ?????????????????????????????????????????????????? | | ?????????????????????????????????????????????????? | | ?????????????????????????????????????????????????? | | ?????????????????????????????????????????????????? | | ?????????????????????????????????????????????????? | | ?????????????????????????????????????????????????? | | ?????????????????????????????????????????????????? | | ?????????????????????????????????????????????????? | | ?????????????????????????????????????????????????? | | ?????????????????????????????????????????????????? | +----------------------------------------------------+ Best States ------------- Heat Dissipation 45 Energy Generation 23 Energy Capacity 250 Matter Stores 300 Matter Capacity 300 Sight Range 16 Terrain Scan Range 14 Terrain Scan Density 10 Armor Coverage 150 Resistance: KI 35 Resistance: TH 35 Resistance: EX 35 Resistance: EM 35 Resistance: I 35 Resistance: S 35 Resistance: P 35 Evasion (%) 55 Targeting Accuracy 5 Offensive Hacking 20 Trap Extractor Capacity 4 Item Schematics ----------------- Flight Unit | -9/Materials | Scanalyzed Beam Rifle | -8/Materials | Scanalyzed Robot Schematics ------------------ None Fabricated ------------ Nothing Alien Tech Used ----------------- None Achievements -------------- None Challenges ------------ None Game ------ Seed ProtonMiniStreamer Manual? 0 Play Time 00:16:12 Cumulative 43.0 hours Start 2022.03.20 @ 18:30:24 End 2022.03.20 @ 18:43:12 Sessions 1 Manual Loads 0 Difficulty Explorer Special Mode None Game No. 65 Rogue 0 Adventurer 0 Explorer 65 Win Type - Total 0 Types 0/0/0/0/0/0/0/0/0 Lore% 35 Gallery% 45 Achievement% 42 Wizard Run 0 Options --------- ASCII 0 Keyboard 0 Movement Mouse Keybinds 0 Fullscreen 1 Font 18/SmallcapsGlow Map View 76x50 Tactical HUD 1 Map Filters NONE Filters NONE Steam 1 RUN: a8ea471c-d54d-4ff6-823b-9286ba2daff7